Workbook

Sheet Инструкция
O2: ="Версия " & GetVersion() -> Версия 2.1.2
C3: Инструкция по заполнению шаблона
C25: Организационно-технические консультации:
C26: ФИО | E26: Шульгин Александр Анатольевич
C27: телефон | E27: (3452) 42-66-67
C28: e-mail | E28: ShulginAA@72to.ru
C29: WEB-сайт | E29: tariff.expert
C30: Комментарий | E30: Заполненные шаблоны необходимо направлять через систему ЕИАС
C32: Консультации по методологии заполнения форм:
C33: ФИО
C34: телефон
C35: e-mail
C36: WEB-сайт
C37: Комментарий

Sheet Титульный
M2: Период регулирования | N2: =god -> 2023
G3: =version -> Версия 2.1.2 | M3: Базовый период | N3: =N2-1 -> 2022
E4: Фактические объёмы электроэнергии и мощности сетевой организации | M4: ПоследнийГод | N4: =N2-2 -> 2021
E6: Регион РФ | F6: Тюменская область
F7: Год | G7: Месяц
E8: Период регулирования | F8: 2023 | G8: Ноябрь
E10: Наименование организации | F10: ООО "Агентство Интеллект-Сервис"
E12: ИНН организации | F12: 7202082778 | G12: Дата последнего обновления реестра организаций 17.01.2022 10:43:19
E13: КПП организации | F13: 720301001
E15: Территориальное разделение (регионы, в которых организация оказывает услуги) | F15: да | G15: Тюменская область (Юг Тюменской области)
F16: нет | G16: Ханты-Мансийский автономный округ
F17: нет | G17: Ямало-Ненецкий автономный округ
E19: Юридический адрес | G19: 625048 город Тюмень улица Новгородская д. 10 стр.76 к.40
E20: Почтовый адрес | G20: 625048 город Тюмень улица Новгородская д. 10 стр.76
E21: Руководитель | F21: Фамилия, имя, отчество | G21: Федоров Андрей Владимирович
F22: Контактный телефон | G22: 8 (3452) 56-86-58
E23: Главный бухгалтер | F23: Фамилия, имя, отчество | G23: Рябкова Татьяна Петровна
F24: Контактный телефон | G24: 8-919-938-94-89
E25: Должностное лицо, ответственное за составление формы | F25: Фамилия, имя, отчество | G25: Андреева Любовь Леонтьевна
F26: Должность | G26: экономист
F27: Контактный телефон | G27: 8 (3452) 56-86-58
F28: e-mail | G28: ais7213@mail.ru

Sheet Инструкция по заполнению
E9: Комментарии по заполнению
E11: При заполнении отчётных форм принимается: ВН (220 кВ, 110 кВ) – напряжение в сети 220 кВ, 110 кВ и выше СН 1 – напряжение в сети 35 кВ и выше СН 2 – напряжение в сети 10 - 6 кВ и выше НН – напряжение в сети 0,4 кВ и выше
E12: Электроэнергия
E13: 1. В строке 1 отражается объём поступившей электроэнергии в сеть отчитывающейся организации по уровням напряжения от других организаций. Строка 1 = сумма строк (1.1 + 1.2 + 1.3)
E14: 2. В строке 2 отражается объём поступившей электроэнергии в сеть отчитывающейся организации из других уровней напряжения (трансформация). Строка 2 = сумма строк (2.1 + 2.2 + 2.3)
E15: 3. В строке 3 отражается отпуск из сети отчитывающейся организации по уровням напряжения поставщикам, в другие сети, конечным потребителям и на хозяйственные нужды собственных сетей. Строка 3 = сумма строк (3.1 + 3.2 + 3.3 + 3.4)
E16: 4. В строке 4 отражается отпуск в сеть других уровней напряжения отчитывающейся организации. Объём ВН = сумме строки 2.1 по всем уровням напряжения. Объём СН 1 = сумме строки 2.2 по всем уровням напряжения. Объём СН 2 = сумме строки 2.3 по всем уровням напряжения
E17: 5. В строке 5 отражаются потери в сетях по уровням напряжения отчитывающейся организации, относимые на собственное потребление, на передачу субабонентам и на конечных потребителей. Строка 5 = сумма строк (5.1 + 5.2 + 5.3)
E18: 6. В строке 6 отражается объём электроэнергии, вырабатываемой на установках отчитывающейся организации
E19: 7. В строке 7 отражается собственное потребление элекроэнергии отчитывающейся организации
E20: 8. В строке 8 отражается небаланс поступления в сеть и отпуска из сети электроэнергии отчитывающейся организации, включая потери электроэнергии. Строка 8 = строки (1 + 2 - 3 - 4 - 5 + 6 - 7)
E21: Мощность
E22: 1. В строке 1 отражается объём поступившей мощности в сеть отчитывающейся организации по уровням напряжения от других организаций. Строка 1 = сумма строк (1.1 + 1.2 + 1.3)
E23: 2. В строке 2 отражается объём поступившей мощности в сеть отчитывающейся организации из других уровней напряжения (трансформация). Строка 2 = сумма строк (2.1 + 2.2 + 2.3)
E24: 3. В строке 3 отражается отпуск из сети отчитывающейся организации по уровням напряжения поставщикам, в другие сети и конечным потребителям. Строка 3 = сумма строк (3.1 + 3.2 + 3.3)
E25: 4. В строке 4 отражается отпуск в сеть других уровней напряжения отчитывающейся организации. Объём ВН = сумме строки 2.1 по всем уровням напряжения. Объём СН 1 = сумме строки 2.2 по всем уровням напряжения. Объём СН 2 = сумме строки 2.3 по всем уровням напряжения
E26: 5. В строке 5 отражается объём мощности на хозяйственные нужды отчитывающейся организации
E27: 6. В строке 6 отражаются потери в сетях по уровням напряжения отчитывающейся организации, включая потери относимые на собственное потребление (Строка 6.1)
E28: 7. В строке 7 отражается объём мощности, вырабатываемой на установках отчитывающейся организации
E29: 8. В строке 8 отражается собственное потребление мощности отчитывающейся организации
E30: 9. В строке 9 отражается небаланс поступления в сеть и отпуска из сети мощности отчитывающейся организации, включая потери мощности. Строка 9 = строки (1 + 2 - 3 - 4 - 5 - 6 + 7 - 8)
E31: Заявленная и присоединённая мощность
E32: 1. В строке 1 приводятся сведения о сумме всей заявленной потребителями мощности по уровням напряжения. Данные отображаются только в случае, если регулирующим органом осуществляется регулирование распределительных сетевых организаций по заявленной мощности
E33: 2. В строке 2 приводятся сведения о сумме всех присоединённых мощностей потребителей, отнесённых к соответствующему уровню напряжения
E34: Товарная продуция
E35: 1. В данном разделе отражаются сведения о товарной выручке, определенной на основании данных об объёмах фактически оказанных услуг по тарифам, утвержденным в установленном порядке. Строка Всего = сумма строк (1.1 + 1.2 + 1.3)
E36: Расход по оплате услуг по передаче электрической энергии (мощности)
E37: 1. В данном разделе отражаются сведения о расходе по оплате услуг по передаче электроэнергии (мощности) без учета НДС в разрезе сетевых организаций по уровням напряжения
E38: Платежи
E39: 1. В строке 1 отражается объём поступлений денежных средств в адрес отчитывающейся организации в счёт стоимости поставленных услуг по передаче
E40: 2. в строке 2 отражается объём уплаты денежных средств отчитывающейся организацией в счет стоимости приобретённых услуг по передаче

Sheet 46 - передача
D9: ="Фактические объёмы электроэнергии и мощности за " & IF(kvartal="","Не определено",kvartal) & " " & IF(god="","Не определено",god) & " года" -> Фактические объёмы электроэнергии и мощности за Ноябрь 2023 года
E11: Число знаков после запятой:
D14: № п/п | E14: Наименование показателя | F14: Всего | G14: ВН | H14: СН 1 | I14: СН 2 | J14: НН
D15: 1 | E15: 2 | F15: 3 | G15: 4 | H15: 5 | I15: 6 | J15: 7
D17: Электроэнергия (тыс. кВтч)
D18: 1 | E18: Поступление в сеть из других организаций, в том числе | F18: =SUM(G18:J18) -> 10618.383 | G18: =SUM(G19,G20,G29,G33) -> 8216.695 | H18: =SUM(H19,H20,H29,H33) -> 0 | I18: =SUM(I19,I20,I29,I33) -> 2401.688 | J18: =SUM(J19,J20,J29,J33) -> 0
D19: 1.1 | E19: Из сетей ЕНЭС | F19: =SUM(G19:J19) -> 0
D20: 1.2 | E20: Из сетей прочих сетевых организаций | F20: =SUM(G20:J20) -> 9162.564 | G20: =SUM(G21:G28) -> 6819.423 | H20: =SUM(H21:H28) -> 0 | I20: =SUM(I21:I28) -> 2343.141 | J20: =SUM(J21:J28) -> 0
D21: 1.2.0
C22: Удалить | D22: 1.2.1 | E22: АО "Россети Тюмень" | F22: =SUM(G22:J22) -> 7128.551 | G22: 6819.423 | H22: 0 | I22: 309.128 | J22: 0
C23: Удалить | D23: 1.2.2 | E23: ООО "ЭЛЕКОНТ" | F23: 77.163 | G23: 0 | H23: 0 | I23: 77.163 | J23: 0
C24: Удалить | D24: 1.2.3 | E24: АО "СУЭНКО" | F24: 1282.574 | G24: 0 | H24: 0 | I24: 1282.574 | J24: 0
C25: Удалить | D25: 1.2.4 | E25: ООО "Дорстрой" | F25: 191.653 | G25: 0 | H25: 0 | I25: 191.653 | J25: 0
C26: Удалить | D26: 1.2.5 | E26: ООО "Региональная энергетическая компания" | F26: 154.629 | G26: 0 | H26: 0 | I26: 154.629 | J26: 0
C27: Удалить | D27: 1.2.6 | E27: ООО «Газпром энерго» в зоне деятельности Сургутского филиала Общества с ограниченной ответственностью «Газпром энерго» | F27: 327.994 | G27: 0 | H27: 0 | I27: 327.994 | J27: 0
E28: Добавить сетевую компанию
D29: 1.3 | E29: От генерирующих компаний и блок-станций | F29: =SUM(G29:J29) -> 1455.819 | G29: =SUM(G30:G32) -> 1397.272 | H29: =SUM(H30:H32) -> 0 | I29: =SUM(I30:I32) -> 58.547 | J29: =SUM(J30:J32) -> 0
D30: 1.3.0
C31: Удалить | D31: 1.3.1 | E31: ОАО "Фортум" (Тюменская ТЭЦ-1) | F31: =SUM(G31:J31) -> 1455.819 | G31: 1397.272 | H31: 0 | I31: 58.547 | J31: 0
E32: Добавить генерирующую компанию
D33: 1.4 | E33: Из сетей сопредельных регионов | F33: =SUM(G33:J33) -> 0
D34: 2 | E34: Поступление в сеть из других уровней напряжения (трансформация) | F34: =SUM(H34:J34) -> 7944.75021 | H34: =H35 -> 0 | I34: =I35+I36 -> 4276.016392 | J34: =J35+J36+J37 -> 3668.733818
D35: 2.1 | E35: ВН | F35: =SUM(H35:J35) -> 4276.016392 | I35: =G18-G39-G65 -> 4276.016392
D36: 2.2 | E36: СН 1 | F36: =SUM(I36:J36) -> 0
D37: 2.3 | E37: СН 2 | F37: =SUM(J37) -> 3668.733818 | J37: =I35+I18-I39-I67 -> 3668.733818
D39: 3 | E39: Отпуск из сети, в том числе | F39: =SUM(G39:J39) -> 10207.005 | G39: =SUM(G40,G48,G53,G56,G59) -> 3891.84 | H39: =SUM(H40,H48,H53,H56,H59) -> 0 | I39: =SUM(I40,I48,I53,I56,I59) -> 2910.377 | J39: =SUM(J40,J48,J53,J56,J59) -> 3404.788
D40: 3.1 | E40: Конечные потребители | F40: =SUM(G40:J40) -> 6033.82 | G40: =SUM(G41:G47) -> 568.515 | H40: =SUM(H41:H47) -> 0 | I40: =SUM(I41:I47) -> 2060.517 | J40: =SUM(J41:J47) -> 3404.788
D41: 3.1.0
C42: Удалить | D42: 3.1.1 | E42: АО "Газпром энергосбыт Тюмень" | F42: =SUM(G42:J42) -> 4832.408 | G42: 450.785 | H42: 0 | I42: 1113.501 | J42: 3268.122
C43: Удалить | D43: 3.1.2 | E43: АО "Энергосбытовая компания "Восток" | F43: =SUM(G43:J43) -> 529.627 | H43: 0 | I43: 407.579 | J43: 122.048
C44: Удалить | D44: 3.1.3 | E44: ООО "Энергокомплекс" | F44: =SUM(G44:J44) -> 539.437 | H44: 0 | I44: 539.437
C45: Удалить | D45: 3.1.4 | E45: ООО "МагнитЭнерго" | F45: =SUM(G45:J45) -> 14.618 | H45: 0 | J45: 14.618
C46: Удалить | D46: 3.1.5 | E46: ООО "МСК Энерго" | F46: =SUM(G46:J46) -> 117.73 | G46: 117.73
E47: Добавить сбытовую компанию
D48: 3.2 | E48: Другие сети | F48: =SUM(G48:J48) -> 4173.185 | G48: =SUM(G49:G52) -> 3323.325 | H48: =SUM(H49:H52) -> 0 | I48: =SUM(I49:I52) -> 849.86 | J48: =SUM(J49:J52) -> 0
D49: 3.2.0
C50: Удалить | D50: 3.2.1 | E50: АО "СУЭНКО" | F50: =SUM(G50:J50) -> 3884.428 | G50: 3323.325 | H50: 0 | I50: 561.103 | J50: 0
C51: Удалить | D51: 3.2.2 | E51: ООО "Региональная энергетическая компания" | F51: =SUM(G51:J51) -> 288.757 | G51: 0 | H51: 0 | I51: 288.757 | J51: 0
E52: Добавить сетевую компанию
D53: 3.3 | E53: Поставщики | F53: =SUM(G53:J53) -> 0 | G53: =SUM(G54:G55) -> 0 | H53: =SUM(H54:H55) -> 0 | I53: =SUM(I54:I55) -> 0 | J53: =SUM(J54:J55) -> 0
D54: 3.3.0
E55: Добавить генерирующую компанию
D56: 3.4 | E56: Другие организации | F56: =SUM(G56:J56) -> 0 | G56: =SUM(G57:G58) -> 0 | H56: =SUM(H57:H58) -> 0 | I56: =SUM(I57:I58) -> 0 | J56: =SUM(J57:J58) -> 0
D57: 3.4.0
E58: Добавить другую организацию
D59: 3.5 | E59: Сетевые компании, опосредованно присоединённые через сети прочих потребителей | F59: =SUM(G59:J59) -> 0 | G59: =SUM(G60:G61) -> 0 | H59: =SUM(H60:H61) -> 0 | I59: =SUM(I60:I61) -> 0 | J59: =SUM(J60:J61) -> 0
D60: 3.5.0
E61: Добавить сетевую компанию
D62: 4 | E62: Отпуск в сеть других уровней напряжения | F62: =SUM(G62:I62) -> 7944.75021 | G62: =SUM(G35:J35) -> 4276.016392 | H62: =SUM(G36:J36) -> 0 | I62: =SUM(G37:J37) -> 3668.733818
D63: 5 | E63: Хозяйственные нужды сети | F63: =SUM(G63:J63) -> 0
D65: 6 | E65: Потери, в том числе | F65: =SUM(G65:J65) -> 411.378 | G65: =SUM(G66:G67) -> 48.83860836 | H65: =SUM(H66:H67) -> 0 | I65: =SUM(I66:I67) -> 98.59357366 | J65: =SUM(J66:J67) -> 263.945818
D66: 6.1 | E66: Относимые на собственное потребление | F66: 0
D67: 6.2 | E67: Относимые на передачу субабонентам | F67: 411.378 | G67: 48.83860836 | H67: 0 | I67: 98.59357366 | J67: 263.945818
D69: 7 | E69: Генерация на установках организации (совмещение деятельности) | F69: 0
D70: 8 | E70: Собственное потребление (совмещение деятельности) | F70: 0
D71: 9 | E71: Небаланс | F71: -7.034373084e-13 | G71: =G18-G39-G62-G63-G65+G69-G70 -> 2.629008122e-13 | H71: =H18+H34-H39-H62-H63-H65+H69-H70 -> 0 | I71: =I18+I34-I39-I62-I63-I65+I69-I70 -> -1.705302566e-13 | J71: =J18+J34-J39-J63-J65+J69-J70 -> -7.958078641e-13
D72: Мощность (МВт)
D73: 1 | E73: Поступление в сеть из других организаций, в том числе | F73: =SUM(G73:J73) -> 18.3075569 | G73: =SUM(G74,G75,G84,G88) -> 14.16671552 | H73: =SUM(H74,H75,H84,H88) -> 0 | I73: =SUM(I74,I75,I84,I88) -> 4.140841379 | J73: =SUM(J74,J75,J84,J88) -> 0
D74: 1.1 | E74: Из сетей ЕНЭС | F74: =SUM(G74:J74) -> 0
D75: 1.2 | E75: Из сетей прочих сетевых организаций | F75: =SUM(G75:J75) -> 15.79752414 | G75: =SUM(G76:G83) -> 11.75762586 | H75: =SUM(H76:H83) -> 0 | I75: =SUM(I76:I83) -> 4.039898276 | J75: =SUM(J76:J83) -> 0
D76: 1.2.0
C77: Удалить | D77: 1.2.1 | E77: =IF('46 - передача'!$E$22="", "", '46 - передача'!$E$22) -> АО "Россети Тюмень" | F77: =SUM(G77:J77) -> 12.29060517 | G77: =G22/580 -> 11.75762586 | H77: 0 | I77: 0.5329793103 | J77: 0
C78: Удалить | D78: 1.2.2 | E78: =IF('46 - передача'!$E$23="", "", '46 - передача'!$E$23) -> ООО "ЭЛЕКОНТ" | F78: 0.1330396552 | G78: =G23/580 -> 0 | H78: 0 | I78: 0.1330396552 | J78: 0
C79: Удалить | D79: 1.2.3 | E79: =IF('46 - передача'!$E$24="", "", '46 - передача'!$E$24) -> АО "СУЭНКО" | F79: 2.211334483 | G79: =G24/580 -> 0 | H79: 0 | I79: 2.211334483 | J79: 0
C80: Удалить | D80: 1.2.4 | E80: =IF('46 - передача'!$E$25="", "", '46 - передача'!$E$25) -> ООО "Дорстрой" | F80: 0.3304362069 | G80: =G25/580 -> 0 | H80: 0 | I80: 0.3304362069 | J80: 0
C81: Удалить | D81: 1.2.5 | E81: =IF('46 - передача'!$E$26="", "", '46 - передача'!$E$26) -> ООО "Региональная энергетическая компания" | F81: 0.2666017241 | G81: =G26/580 -> 0 | H81: 0 | I81: 0.2666017241 | J81: 0
C82: Удалить | D82: 1.2.6 | E82: =IF('46 - передача'!$E$27="", "", '46 - передача'!$E$27) -> ООО «Газпром энерго» в зоне деятельности Сургутского филиала Общества с ограниченной ответственностью «Газпром энерго» | F82: 0.5655068966 | G82: =G27/580 -> 0 | H82: 0 | I82: 0.5655068966 | J82: 0
E83: Добавить сетевую компанию
D84: 1.3 | E84: От генерирующих компаний и блок-станций | F84: =SUM(G84:J84) -> 2.510032759 | G84: =SUM(G85:G87) -> 2.409089655 | H84: =SUM(H85:H87) -> 0 | I84: =SUM(I85:I87) -> 0.1009431034 | J84: =SUM(J85:J87) -> 0
D85: 1.3.0
C86: Удалить | D86: 1.3.1 | E86: =IF('46 - передача'!$E$31="", "", '46 - передача'!$E$31) -> ОАО "Фортум" (Тюменская ТЭЦ-1) | F86: =SUM(G86:J86) -> 2.510032759 | G86: =G31/580 -> 2.409089655 | H86: =H31/580 -> 0 | I86: 0.1009431034 | J86: 0
E87: Добавить генерирующую компанию
D88: 1.4 | E88: Из сетей сопредельных регионов | F88: =SUM(G88:J88) -> 0
D89: 2 | E89: Поступление в сеть из других уровней напряжения (трансформация) | F89: =SUM(H89:J89) -> 13.69784519 | H89: =H90 -> 0 | I89: =I90+I91 -> 7.372442055 | J89: =J90+J91+J92 -> 6.325403134
D90: 2.1 | E90: ВН | F90: =SUM(H90:J90) -> 7.372442055 | I90: =I35/580 -> 7.372442055
D91: 2.2 | E91: СН 1 | F91: =SUM(I91:J91) -> 0
D92: 2.3 | E92: СН 2 | F92: =SUM(J92) -> 6.325403134 | J92: =J37/580 -> 6.325403134
D94: 3 | E94: Отпуск из сети, в том числе | F94: =SUM(G94:J94) -> 17.59828448 | G94: =SUM(G95,G103,G108,G111,G114) -> 6.710068966 | H94: =SUM(H95,H103,H108,H111,H114) -> 0 | I94: =SUM(I95,I103,I108,I111,I114) -> 5.017891379 | J94: =SUM(J95,J103,J108,J111,J114) -> 5.870324138
D95: 3.1 | E95: Конечные потребители | F95: =SUM(G95:J95) -> 10.40313793 | G95: =SUM(G96:G102) -> 0.9801982759 | H95: =SUM(H96:H102) -> 0 | I95: =SUM(I96:I102) -> 3.552615517 | J95: =SUM(J96:J102) -> 5.870324138
D96: 3.1.0
C97: Удалить | D97: 3.1.1 | E97: =IF('46 - передача'!$E$42="", "", '46 - передача'!$E$42) -> АО "Газпром энергосбыт Тюмень" | F97: =SUM(G97:J97) -> 8.331737931 | G97: =G42/580 -> 0.7772155172 | H97: 0 | I97: 1.91982931 | J97: 5.634693103
C98: Удалить | D98: 3.1.2 | E98: =IF('46 - передача'!$E$43="", "", '46 - передача'!$E$43) -> АО "Энергосбытовая компания "Восток" | F98: =SUM(G98:J98) -> 0.91315 | G98: =G43/580 -> 0 | H98: 0 | I98: 0.7027224138 | J98: 0.2104275862
C99: Удалить | D99: 3.1.3 | E99: =IF('46 - передача'!$E$44="", "", '46 - передача'!$E$44) -> ООО "Энергокомплекс" | F99: =SUM(G99:J99) -> 0.9300637931 | G99: =G44/580 -> 0 | H99: 0 | I99: 0.9300637931 | J99: 0
C100: Удалить | D100: 3.1.4 | E100: =IF('46 - передача'!$E$45="", "", '46 - передача'!$E$45) -> ООО "МагнитЭнерго" | F100: =SUM(G100:J100) -> 0.02520344828 | G100: =G45/580 -> 0 | H100: 0 | I100: 0 | J100: 0.02520344828
C101: Удалить | D101: 3.1.5 | E101: =IF('46 - передача'!$E$46="", "", '46 - передача'!$E$46) -> ООО "МСК Энерго" | F101: =SUM(G101:J101) -> 0.2029827586 | G101: =G46/580 -> 0.2029827586 | H101: 0 | I101: 0 | J101: 0
E102: Добавить сбытовую компанию
D103: 3.2 | E103: Другие сети | F103: =SUM(G103:J103) -> 7.195146552 | G103: =SUM(G104:G107) -> 5.72987069 | H103: =SUM(H104:H107) -> 0 | I103: =SUM(I104:I107) -> 1.465275862 | J103: =SUM(J104:J107) -> 0
D104: 3.2.0
C105: Удалить | D105: 3.2.1 | E105: =IF('46 - передача'!$E$50="", "", '46 - передача'!$E$50) -> АО "СУЭНКО" | F105: =SUM(G105:J105) -> 6.697289655 | G105: =G50/580 -> 5.72987069 | H105: 0 | I105: 0.9674189655 | J105: 0
C106: Удалить | D106: 3.2.2 | E106: =IF('46 - передача'!$E$51="", "", '46 - передача'!$E$51) -> ООО "Региональная энергетическая компания" | F106: =SUM(G106:J106) -> 0.4978568966 | G106: 0 | H106: 0 | I106: 0.4978568966 | J106: 0
E107: Добавить сетевую компанию
D108: 3.3 | E108: Поставщики | F108: =SUM(G108:J108) -> 0 | G108: =SUM(G109:G110) -> 0 | H108: =SUM(H109:H110) -> 0 | I108: =SUM(I109:I110) -> 0 | J108: =SUM(J109:J110) -> 0
D109: 3.3.0
E110: Добавить генерирующую компанию
D111: 3.4 | E111: Другие организации | F111: =SUM(G111:J111) -> 0 | G111: =SUM(G112:G113) -> 0 | H111: =SUM(H112:H113) -> 0 | I111: =SUM(I112:I113) -> 0 | J111: =SUM(J112:J113) -> 0
D112: 3.4.0
E113: Добавить другую организацию
D114: 3.5 | E114: Сетевые компании, опосредованно присоединённые через сети прочих потребителей | F114: =SUM(G114:J114) -> 0 | G114: =SUM(G115:G116) -> 0 | H114: =SUM(H115:H116) -> 0 | I114: =SUM(I115:I116) -> 0 | J114: =SUM(J115:J116) -> 0
D115: 3.5.0
E116: Добавить сетевую компанию
D117: 4 | E117: Отпуск в сеть других уровней напряжения | F117: =SUM(G117:I117) -> 13.69784519 | G117: =SUM(G90:J90) -> 7.372442055 | H117: =SUM(G91:J91) -> 0 | I117: =SUM(G92:J92) -> 6.325403134
D118: 5 | E118: Хозяйственные нужды сети | F118: =SUM(G118:J118) -> 0
D120: 6 | E120: Потери, в том числе | F120: =SUM(G120:J120) -> 0.7092724138 | G120: =SUM(G121:G122) -> 0.08420449717 | H120: =SUM(H121:H122) -> 0 | I120: =SUM(I121:I122) -> 0.1699889201 | J120: =SUM(J121:J122) -> 0.4550789965
D121: 6.1 | E121: Относимые на собственное потребление | F121: 0
D122: 6.2 | E122: Относимые на передачу субабонентам | F122: 0.7092724138 | G122: =G67/580 -> 0.08420449717 | H122: =H67/580 -> 0 | I122: 0.1699889201 | J122: 0.4550789965
D124: 7 | E124: Генерация на установках организации (совмещение деятельности) | F124: 0
D125: 8 | E125: Собственное потребление (совмещение деятельности) | F125: 0
D126: 9 | E126: Небаланс | F126: -1.387778781e-16 | G126: =G73-G94-G117-G118-G120+G124-G125 -> 8.604228441e-16 | H126: =H73+H89-H94-H117-H118-H120+H124-H125 -> 0 | I126: =I73+I89-I94-I117-I118-I120+I124-I125 -> -1.110223025e-16 | J126: =J73+J89-J94-J118-J120+J124-J125 -> -8.881784197e-16
D127: Заявленная и присоединённая мощность
D128: 1 | E128: Заявленная мощность конечных потребителей (МВт) | F128: =SUM(G128:J128) -> 10.81926345 | G128: =G95*1.04 -> 1.019406207 | H128: =H95*1.04 -> 0 | I128: 3.694720138 | J128: 6.105137103
D129: 2 | E129: Присоединенная мощность конечных потребителей (МВА) | F129: =SUM(G129:J129) -> 0
D130: Товарная продукция (без НДС), тыс.руб.
D131: 1 | E131: Всего | F131: =SUM(G131:J131) -> 11102.71047 | G131: =SUM(G132,G140,G143) -> 1084.384128 | H131: =SUM(H132,H140,H143) -> 0 | I131: =SUM(I132,I140,I143) -> 6449.011676 | J131: =SUM(J132,J140,J143) -> 3569.314667
D132: 1.1 | E132: Сбытовые компании | F132: =SUM(G132:J132) -> 11102.71047 | G132: =SUM(G133:G139) -> 1084.384128 | H132: =SUM(H133:H139) -> 0 | I132: =SUM(I133:I139) -> 6449.011676 | J132: =SUM(J133:J139) -> 3569.314667
D133: 1.1.0
C134: Удалить | D134: 1.1.1 | E134: АО "Газпром энергосбыт Тюмень" | F134: =SUM(G134:J134) -> 7779.60531 | G134: 860.09906 | I134: 3457.3349 | J134: 3462.17135
C135: Удалить | D135: 1.1.2 | E135: АО "Энергосбытовая компания "Восток" | F135: =SUM(G135:J135) -> 1249.07711 | I135: 1193.34486 | J135: 55.73225
C136: Удалить | D136: 1.1.3 | E136: ООО "Энергокомплекс" | F136: =SUM(G136:J136) -> 1798.331916 | I136: 1798.331916
C137: Удалить | D137: 1.1.4 | E137: ООО "МагнитЭнерго" | F137: =SUM(G137:J137) -> 51.41106746 | J137: 51.41106746
C138: Удалить | D138: 1.1.5 | E138: ООО "МСК Энерго" | F138: =SUM(G138:J138) -> 224.2850684 | G138: 224.2850684
E139: Добавить сбытовую компанию
D140: 1.2 | E140: Сетевые компании | F140: =SUM(G140:J140) -> 0 | G140: =SUM(G141:G142) -> 0 | H140: =SUM(H141:H142) -> 0 | I140: =SUM(I141:I142) -> 0 | J140: =SUM(J141:J142) -> 0
A141: F | D141: 1.2.0
E142: Добавить сетевую компанию
D143: 1.3 | E143: Другие организации | F143: =SUM(G143:J143) -> 0 | G143: =SUM(G144:G145) -> 0 | H143: =SUM(H144:H145) -> 0 | I143: =SUM(I144:I145) -> 0 | J143: =SUM(J144:J145) -> 0
D144: 1.3.0
E145: Добавить другую организацию
D146: Расход по оплате услуг по передаче электрической энергии (мощности) (без НДС), тыс.руб.
D147: 1 | E147: Сетевая компания | F147: =SUM(G147:J147) -> 2423.778626 | G147: =SUM(G148:G150) -> 2318.672014 | H147: =SUM(H148:H150) -> 0 | I147: =SUM(I148:I150) -> 105.1066113 | J147: =SUM(J148:J150) -> 0
D148: 1.0
E149: АО "Россети Тюмень" | F149: =SUM(G149:J149) -> 2423.778626 | G149: 2318.672014 | I149: 105.1066113
E150: Добавить сетевую компанию (передача)
D151: Платежи (без НДС), тыс.руб.
D152: 1 | E152: Поступления денежных средств в счёт стоимости поставленных услуг по передаче | F152: =SUM(G152:J152) -> 11029.42495 | G152: =SUM(G153,G161,G164) -> 1084.384128 | H152: =SUM(H153,H161,H164) -> 0 | I152: =SUM(I153,I161,I164) -> 6369.713936 | J152: =SUM(J153,J161,J164) -> 3575.326887
D153: 1.1 | E153: Сбытовые компании | F153: =SUM(G153:J153) -> 11029.42495 | G153: =SUM(G154:G160) -> 1084.384128 | H153: =SUM(H154:H160) -> 0 | I153: =SUM(I154:I160) -> 6369.713936 | J153: =SUM(J154:J160) -> 3575.326887
D154: 1.1.0
C155: Удалить | D155: 1.1.1 | E155: =IF('46 - передача'!$E$134="", "", '46 - передача'!$E$134) -> АО "Газпром энергосбыт Тюмень" | F155: =SUM(G155:J155) -> 7779.60531 | G155: =G134 -> 860.09906 | H155: =H134 -> 0 | I155: 3457.3349 | J155: 3462.17135
C156: Удалить | D156: 1.1.2 | E156: =IF('46 - передача'!$E$135="", "", '46 - передача'!$E$135) -> АО "Энергосбытовая компания "Восток" | F156: =SUM(G156:J156) -> 1175.79159 | G156: =G135 -> 0 | H156: 0 | I156: 1114.04712 | J156: 61.74447
C157: Удалить | D157: 1.1.3 | E157: =IF('46 - передача'!$E$136="", "", '46 - передача'!$E$136) -> ООО "Энергокомплекс" | F157: =SUM(G157:J157) -> 1798.331916 | G157: =G136 -> 0 | H157: 0 | I157: 1798.331916 | J157: 0
C158: Удалить | D158: 1.1.4 | E158: =IF('46 - передача'!$E$137="", "", '46 - передача'!$E$137) -> ООО "МагнитЭнерго" | F158: =SUM(G158:J158) -> 51.41106746 | G158: =G137 -> 0 | H158: 0 | I158: 0 | J158: 51.41106746
C159: Удалить | D159: 1.1.5 | E159: =IF('46 - передача'!$E$138="", "", '46 - передача'!$E$138) -> ООО "МСК Энерго" | F159: =SUM(G159:J159) -> 224.2850684 | G159: =G138 -> 224.2850684 | H159: 0 | I159: 0 | J159: 0
E160: Добавить сбытовую компанию
D161: 1.2 | E161: Сетевые компании | F161: =SUM(G161:J161) -> 0 | G161: =SUM(G162:G163) -> 0 | H161: =SUM(H162:H163) -> 0 | I161: =SUM(I162:I163) -> 0 | J161: =SUM(J162:J163) -> 0
D162: 1.2.0
E163: Добавить сетевую компанию
D164: 1.3 | E164: Другие организации | F164: =SUM(G164:J164) -> 0 | G164: =SUM(G165:G166) -> 0 | H164: =SUM(H165:H166) -> 0 | I164: =SUM(I165:I166) -> 0 | J164: =SUM(J165:J166) -> 0
D165: 1.3.0
E166: Добавить другую организацию
D168: 2 | E168: Уплата денежных средств в счёт стоимости приобретённых услуг по передаче | F168: =SUM(G168:J168) -> 0 | G168: =SUM(G169:G170) -> 0 | H168: =SUM(H169:H170) -> 0 | I168: =SUM(I169:I170) -> 0 | J168: =SUM(J169:J170) -> 0
D169: 2.0
E170: Добавить сетевую компанию (передача)

Sheet Проверка
A1: Ссылка | B1: Причина | C1: Обязательность выполнения

Sheet modProv (hidden)

Sheet TEHSHEET (hidden)
A1: Алтайский край | C1: YEAR | D1: MONTH | E1: logic | G1: НСРФ
A2: Амурская область | C2: 2014 | D2: Январь | E2: да | G2: Тюменская область
A3: Архангельская область | C3: 2015 | D3: Февраль | E3: нет | G3: Ханты-Мансийский автономный округ
A4: Астраханская область | C4: 2016 | D4: Март | G4: Ямало-Ненецкий автономный округ
A5: Белгородская область | C5: 2017 | D5: Апрель
A6: Брянская область | C6: 2018 | D6: Май
A7: Владимирская область | C7: 2019 | D7: Июнь
A8: Волгоградская область | C8: 2020 | D8: Июль | G8: XML_ORG_LIST_TAG_NAMES
A9: Вологодская область | C9: 2021 | D9: Август | G9: ORG_NAME
A10: Воронежская область | C10: 2022 | D10: Сентябрь | G10: INN_NAME
A11: г. Москва | C11: 2023 | D11: Октябрь | G11: KPP_NAME
A12: г.Байконур | C12: 2024 | D12: Ноябрь | G12: VDET_NAME
A13: г.Санкт-Петербург | C13: 2025 | D13: Декабрь | G13: NSRF
A14: Еврейская автономная область | D14: Год
A15: Забайкальский край
A16: Ивановская область
A17: Иркутская область
A18: Кабардино-Балкарская республика
A19: Калининградская область
A20: Калужская область
A21: Камчатский край
A22: Карачаево-Черкесская республика
A23: Кемеровская область
A24: Кировская область
A25: Костромская область
A26: Краснодарский край
A27: Красноярский край
A28: Курганская область
A29: Курская область
A30: Ленинградская область
A31: Липецкая область
A32: Магаданская область
A33: Московская область
A34: Мурманская область
A35: Ненецкий автономный округ
A36: Нижегородская область
A37: Новгородская область
A38: Новосибирская область
A39: Омская область
A40: Оренбургская область
A41: Орловская область
A42: Пензенская область
A43: Пермский край
A44: Приморский край
A45: Псковская область
A46: Республика Адыгея
A47: Республика Алтай
A48: Республика Башкортостан
A49: Республика Бурятия
A50: Республика Дагестан
A51: Республика Ингушетия
A52: Республика Калмыкия
A53: Республика Карелия
A54: Республика Коми
A55: Республика Марий Эл
A56: Республика Мордовия
A57: Республика Саха (Якутия)
A58: Республика Северная Осетия-Алания
A59: Республика Татарстан
A60: Республика Тыва
A61: Республика Хакасия
A62: Ростовская область
A63: Рязанская область
A64: Самарская область
A65: Саратовская область
A66: Сахалинская область
A67: Свердловская область
A68: Смоленская область
A69: Ставропольский край
A70: Тамбовская область
A71: Тверская область
A72: Томская область
A73: Тульская область
A74: Тюменская область
A75: Удмуртская республика
A76: Ульяновская область
A77: Хабаровский край
A78: Ханты-Мансийский автономный округ
A79: Челябинская область
A80: Чеченская республика
A81: Чувашская республика
A82: Чукотский автономный округ
A83: Ямало-Ненецкий автономный округ
A84: Ярославская область

Sheet REESTR_ORG (hidden)
A1: ОРГАНИЗАЦИЯ | B1: ИНН | C1: КПП | D1: ТИП ОРГАНИЗАЦИИ | E1: РЕГИОН | G1: ЕНЭС
A2: АО "Газпром энергосбыт" | B2: 7705750968 | C2: 772901001 | D2: Региональная генерация | E2: Тюменская область | G2: Конечные потребители (кроме ТСО)
A3: АО "ИНТЕР РАО - Электрогенерация" | B3: 7704784450 | C3: 862450001 | D3: Региональная генерация | E3: Тюменская область | G3: Региональная генерация
A4: АО "СУЭНКО" | B4: 7205011944 | C4: 720350001 | D4: Региональная генерация | E4: Тюменская область | G4: Оптовая генерация
A5: АО "СибурТюменьГаз" | B5: 7202116628 | C5: 862450001 | D5: Региональная генерация | E5: Тюменская область | G5: ТСО других субъектов РФ
A6: АО "Югорская энергетическая компания децентрализованной зоны" (АО "Юграэнерго") | B6: 8601029263 | C6: 860101001 | D6: Региональная генерация | E6: Тюменская область | G6: Прямой договор
A7: АО Нижневартовская ГРЭС | B7: 8620018330 | C7: 785150001 | D7: Региональная генерация | E7: Тюменская область | G7: Независимые сбытовые компании
A8: Блокстанции ТЭ | B8: 7200000000 | C8: 720000001 | D8: Региональная генерация | E8: Тюменская область | G8: Оптовый рынок
A9: ЗАО "Завод "Сантехкомплект" | B9: 7203039648 | C9: 720301001 | D9: Региональная генерация | E9: Тюменская область | G9: Прочие конечные потребители
A10: ЗАО "ЛУКОЙЛ-АИК" | B10: 8608180070 | C10: 860801001 | D10: Региональная генерация | E10: Тюменская область
A11: МУП "Байкаловский ККП" | B11: 7223000825 | C11: 722301001 | D11: Региональная генерация | E11: Тюменская область
A12: ОАО "Первая генерирующая компания оптового рынка электроэнергии" | B12: 7203158282 | C12: 770401001 | D12: Региональная генерация | E12: Тюменская область
A13: ОАО "ТНК-Нягань" | B13: 8610010727 | C13: 997150001 | D13: Региональная генерация | E13: Тюменская область
A14: ОАО "Фортум" (Тобольская ТЭЦ) | B14: 7203162698 | C14: 720602001 | D14: Региональная генерация | E14: Тюменская область
A15: ОАО "Фортум" (Тюменская ТЭЦ-1) | B15: 7203162698 | C15: 720302001 | D15: Региональная генерация | E15: Тюменская область
A16: ООО "Башнефть-Добыча" | B16: 0277106840 | C16: 025250001 | D16: Региональная генерация | E16: Тюменская область
A17: ООО "Газпром добыча Уренгой" | B17: 8904034784 | C17: 997250001 | D17: Региональная генерация | E17: Тюменская область
A18: ООО "Газпром добыча Ямбург" Филиал "Ямбурское районное энергетическое управление" | B18: 8904034777 | C18: 890401001 | D18: Региональная генерация | E18: Тюменская область
A19: ООО "Газпромнефть-Хантос" | B19: 8618006063 | C19: 997150001 | D19: Региональная генерация | E19: Тюменская область
A20: ООО "Западно-Малобалыкское" | B20: 8619010665 | C20: 997150001 | D20: Региональная генерация | E20: Тюменская область
A21: ООО "Ноябрьская ПГЭ" | B21: 8905037499 | C21: 890501001 | D21: Региональная генерация | E21: Тюменская область
A22: ООО "РН-Уватнефтегаз" | B22: 7225003194 | C22: 722501001 | D22: Региональная генерация | E22: Тюменская область
A23: ООО "СИБУР Тобольск" | B23: 7206025040 | C23: 720601001 | D23: Региональная генерация | E23: Тюменская область
A24: ООО "Салым Петролеум" | B24: 8619013320 | C24: 861901001 | D24: Региональная генерация | E24: Тюменская область
A25: ООО "Северная ПЛЭС" | B25: 7716605105 | C25: 890345001 | D25: Региональная генерация | E25: Тюменская область
A26: ООО "Соровскнефть" | B26: 7202170632 | C26: 720301001 | D26: Региональная генерация | E26: Тюменская область
A27: ООО "Тобольская ТЭЦ" | B27: 7206048859 | C27: 720601001 | D27: Региональная генерация | E27: Тюменская область
A28: ПАО "Передвижная энергетика" | B28: 7719019846 | C28: 771901001 | D28: Региональная генерация | E28: Тюменская область
A29: ПАО "Передвижная энергетика" филиал ПЭС "Уренгой" | B29: 7719019846 | C29: 890402001 | D29: Региональная генерация | E29: Тюменская область
A30: ПАО "Передвижная энергетика" филиал "ПЭС Казым" | B30: 7719019846 | C30: 861102001 | D30: Региональная генерация | E30: Тюменская область
A31: ПАО "Славнефть-Мегионнефтегаз" | B31: 8605003932 | C31: 860501001 | D31: Региональная генерация | E31: Тюменская область
A32: ПАО "Сургутнефтегаз" | B32: 8602060555 | C32: 997250001 | D32: Региональная генерация | E32: Тюменская область
A33: ПАО "Фортум" | B33: 7203162698 | C33: 745301001 | D33: Региональная генерация | E33: Тюменская область
A34: ПАО "Фортум" | B34: 7203162698 | C34: 997150001 | D34: Региональная генерация | E34: Тюменская область
A35: ПАО "Фортум" (Няганская ГРЭС) | B35: 7203162698 | C35: 861002001 | D35: Региональная генерация | E35: Тюменская область
A36: ПИИ ОАО "Газтурбосервис" | B36: 7203078728 | C36: 720301001 | D36: Региональная генерация | E36: Тюменская область
A37: Филиал "Уренгойская ГРЭС" АО "Интер РАО - Электрогенерация" | B37: 7704784450 | C37: 890443001 | D37: Региональная генерация | E37: Тюменская область
A38: Филиал ПАО "ОГК-2"- Сургутская ГРЭС-1 | B38: 2607018122 | C38: 860202001 | D38: Региональная генерация | E38: Тюменская область
A39: филиал "Сургутская ГРЭС-2" ПАО "Юнипро" | B39: 8602067092 | C39: 860202001 | D39: Региональная генерация | E39: Тюменская область
A40: АО "Газпром энергосбыт Тюмень" | B40: 8602067215 | C40: 862450001 | D40: Сбытовая компания | E40: Тюменская область
A41: АО "Газпром энергосбыт" | B41: 7705750968 | C41: 772901001 | D41: Сбытовая компания | E41: Тюменская область
A42: АО "ЕЭСнК" | B42: 7727232575 | C42: 997650001 | D42: Сбытовая компания | E42: Тюменская область
A43: АО "Мосэнергосбыт" | B43: 7736520080 | C43: 997650001 | D43: Сбытовая компания | E43: Тюменская область
A44: АО "Новосибирскэнергосбыт" | B44: 5407025576 | C44: 997650001 | D44: Сбытовая компания | E44: Тюменская область
A45: АО "Оборонэнергосбыт" | B45: 7704731218 | C45: 773043001 | D45: Сбытовая компания | E45: Тюменская область
A46: АО "Салехардэнерго" | B46: 8901030855 | C46: 890101001 | D46: Сбытовая компания | E46: Тюменская область
A47: АО "Сибурэнергоменеджмент" | B47: 7727276526 | C47: 366301001 | D47: Сбытовая компания | E47: Тюменская область
A48: АО "Синэрго" | B48: 6672261117 | C48: 668501001 | D48: Сбытовая компания | E48: Тюменская область
A49: АО "СУЭНКО" | B49: 7205011944 | C49: 720350001 | D49: Сбытовая компания | E49: Тюменская область
A50: АО "Энергосбытовая компания "Восток" | B50: 7705424509 | C50: 997650001 | D50: Сбытовая компания | E50: Тюменская область
A51: АО "ЮТЭК" | B51: 8601022317 | C51: 862450001 | D51: Сбытовая компания | E51: Тюменская область
A52: Закрытое акционерное общество "Энергопромышленная компания", г. Екатеринбург | B52: 6661105959 | C52: 666101001 | D52: Сбытовая компания | E52: Тюменская область
A53: ЗАО "Дирекция по энергообеспечению Восточного промузла" | B53: 7203009876 | C53: 720301001 | D53: Сбытовая компания | E53: Тюменская область
A54: ООО "Городские электрические сети" | B54: 8601070751 | C54: 860101001 | D54: Сбытовая компания | E54: Тюменская область
A55: ОАО "ОБОРОНЭНЕРГОСБЫТ" филиал "УРАЛЬСКИЙ" | B55: 7704731218 | C55: 720445001 | D55: Сбытовая компания | E55: Тюменская область
A56: ОАО "Промышленная энергетика" | B56: 7705736716 | C56: 770501001 | D56: Сбытовая компания | E56: Тюменская область
A57: ОАО "Северная энергетическая компания" | B57: 8911019579 | C57: 890501001 | D57: Сбытовая компания | E57: Тюменская область
A58: ОАО «ЭСК РусГидро» | B58: 7804403972 | C58: 772801001 | D58: Сбытовая компания | E58: Тюменская область
A59: Общество с ограниченной ответственностью «Энергосбытовая компания» | B59: 0275075272 | C59: 027501001 | D59: Сбытовая компания | E59: Тюменская область
A60: ООО "АГГРЕКО ЕВРАЗИЯ" | B60: 7705838531 | C60: 720301001 | D60: Сбытовая компания | E60: Тюменская область
A61: ООО "Альянс-Энергджи" Стрежевской филиал | B61: 7709843116 | C61: 770401001 | D61: Сбытовая компания | E61: Тюменская область
A62: ООО "Газпром добыча Ямбург" Филиал "Ямбурское районное энергетическое управление" | B62: 8904034777 | C62: 890401001 | D62: Сбытовая компания | E62: Тюменская область
A63: ООО "Газпром энергосбыт Брянск" | B63: 8602173527 | C63: 785150001 | D63: Сбытовая компания | E63: Тюменская область
A64: ООО "Гарант Энерго" | B64: 7709782777 | C64: 770901001 | D64: Сбытовая компания | E64: Тюменская область
A65: ООО "Дизаж М" | B65: 7728587330 | C65: 772801001 | D65: Сбытовая компания | E65: Тюменская область
A66: ООО "ЕЭС-Гарант" | B66: 5024173259 | C66: 502401001 | D66: Сбытовая компания | E66: Тюменская область
A67: ООО "Ижэнергосбыт" | B67: 1834024515 | C67: 184001001 | D67: Сбытовая компания | E67: Тюменская область
A68: ООО "Инженерные изыскания" | B68: 1103029229 | C68: 352801001 | D68: Сбытовая компания | E68: Тюменская область
A69: ООО "КНАУФ ЭНЕРГИЯ" | B69: 7729677594 | C69: 772901001 | D69: Сбытовая компания | E69: Тюменская область
A70: ООО "ЛУКОЙЛ-ЭНЕРГОСЕРВИС" | B70: 5030040730 | C70: 503001001 | D70: Сбытовая компания | E70: Тюменская область
A71: ООО "ЛУКОЙЛ-ЭНЕРГОСЕРВИС" | B71: 5030040730 | C71: 997650001 | D71: Сбытовая компания | E71: Тюменская область
A72: ООО "МСК Энерго" | B72: 7725567512 | C72: 772901001 | D72: Сбытовая компания | E72: Тюменская область
A73: ООО "МагнитЭнерго" | B73: 7715902899 | C73: 231001001 | D73: Сбытовая компания | E73: Тюменская область
A74: ООО "МТС ЭНЕРГО" | B74: 9709006506 | C74: 772601001 | D74: Сбытовая компания | E74: Тюменская область
A75: ООО "Независимое энергосбытовое предприятие" | B75: 8602171819 | C75: 860201001 | D75: Сбытовая компания | E75: Тюменская область
A76: ООО "Нижневартовская энергосбытовая компания" | B76: 8603109926 | C76: 860301001 | D76: Сбытовая компания | E76: Тюменская область
A77: ООО "Промэнергосбыт" | B77: 7206036155 | C77: 720601001 | D77: Сбытовая компания | E77: Тюменская область
A78: ООО "ПрофСервисТрейд" | B78: 7707820378 | C78: 771401001 | D78: Сбытовая компания | E78: Тюменская область
A79: ООО "Региональная энергосбытовая компания" (ОПП) | B79: 4633017746 | C79: 463301001 | D79: Сбытовая компания | E79: Тюменская область
A80: ООО "РН-Энерго" | B80: 7706525041 | C80: 997650001 | D80: Сбытовая компания | E80: Тюменская область
A81: ООО "РУСЭНЕРГО" | B81: 4401144416 | C81: 770501001 | D81: Сбытовая компания | E81: Тюменская область
A82: ООО "Русэнергоресурс" | B82: 7706288496 | C82: 770601001 | D82: Сбытовая компания | E82: Тюменская область
A83: ООО "Русэнергосбыт" | B83: 7706284124 | C83: 770401001 | D83: Сбытовая компания | E83: Тюменская область
A84: ООО "СИБУР Тобольск" | B84: 7206025040 | C84: 720601001 | D84: Сбытовая компания | E84: Тюменская область
A85: ООО "Сургутская энергосбытовая компания" | B85: 8602153048 | C85: 860201001 | D85: Сбытовая компания | E85: Тюменская область
A86: ООО "Транснефтьэнерго" | B86: 7703552167 | C86: 772301001 | D86: Сбытовая компания | E86: Тюменская область
A87: ООО "ТРОЯН" | B87: 7203433010 | C87: 720301001 | D87: Сбытовая компания | E87: Тюменская область
A88: ООО "Энергокомплекс" | B88: 7203394515 | C88: 720301001 | D88: Сбытовая компания | E88: Тюменская область
A89: ООО "Энергопрогноз" | B89: 3328454924 | C89: 332801001 | D89: Сбытовая компания | E89: Тюменская область
A90: ООО "Энергосбытовая компания Черногорэнерго" | B90: 8603126569 | C90: 860301001 | D90: Сбытовая компания | E90: Тюменская область
A91: ООО "ЭСК "Независимость" | B91: 7701383354 | C91: 770801001 | D91: Сбытовая компания | E91: Тюменская область
A92: ООО «РЭК» | B92: 7714974474 | C92: 645401001 | D92: Сбытовая компания | E92: Тюменская область
A93: ООО Энергосбытовая компания "Аган",г.Радужный | B93: 8609018048 | C93: 860901001 | D93: Сбытовая компания | E93: Тюменская область
A94: ПАО "Фортум" | B94: 7203162698 | C94: 997150001 | D94: Сбытовая компания | E94: Тюменская область
A95: РЭУ ОАО "Запсибгазпром" | B95: 7203001796 | C95: 720345001 | D95: Сбытовая компания | E95: Тюменская область
A96: Свердловский филиал ООО "ЕЭС-Гарант" | B96: 5024173259 | C96: 667043001 | D96: Сбытовая компания | E96: Тюменская область
A97: АО "Аэропорт Белоярский" | B97: 8611002077 | C97: 861101001 | D97: Сетевая компания | E97: Тюменская область
A98: АО "Аэропорт Рощино" | B98: 7204660086 | C98: 720301001 | D98: Сетевая компания | E98: Тюменская область
A99: АО "Аэропорт Сургут" | B99: 8602060523 | C99: 860201001 | D99: Сетевая компания | E99: Тюменская область
A100: АО "Аэропорт Урай" | B100: 8606010379 | C100: 860601001 | D100: Сетевая компания | E100: Тюменская область
A101: АО "Вынгапуровский тепловодоканал" | B101: 8905045443 | C101: 890501001 | D101: Сетевая компания | E101: Тюменская область
A102: АО "Городские электрические сети" г.Нижневартовск | B102: 8603004190 | C102: 860301001 | D102: Сетевая компания | E102: Тюменская область
A103: АО "Губкинские городские электрические сети" | B103: 8911015126 | C103: 891101001 | D103: Сетевая компания | E103: Тюменская область
A104: АО "Муравленковское предприятие городских электрических сетей" | B104: 8905063058 | C104: 890501001 | D104: Сетевая компания | E104: Тюменская область
A105: АО "Надымское авиапредприятие" | B105: 8903025610 | C105: 890301001 | D105: Сетевая компания | E105: Тюменская область
A106: АО "Нижневартовское нефтегазодобывающее предприятие" | B106: 8603089941 | C106: 860301001 | D106: Сетевая компания | E106: Тюменская область
A107: АО "Новоуренгойский ОАО" | B107: 8904045602 | C107: 890401001 | D107: Сетевая компания | E107: Тюменская область
A108: АО "НордЭнерджиСистемс" | B108: 8903032551 | C108: 720301001 | D108: Сетевая компания | E108: Тюменская область
A109: АО "РСК Ямала" | B109: 8901008899 | C109: 890101001 | D109: Сетевая компания | E109: Тюменская область
A110: АО "Россети Тюмень" | B110: 8602060185 | C110: 997450001 | D110: Сетевая компания | E110: Тюменская область
A111: АО "СУЭНКО" | B111: 7205011944 | C111: 720350001 | D111: Сетевая компания | E111: Тюменская область
A112: АО "Самотлорнефтегаз" | B112: 8603089934 | C112: 997250001 | D112: Сетевая компания | E112: Тюменская область
A113: АО "Тюменский завод медицинского оборудования и инструментов" | B113: 7203000834 | C113: 720301001 | D113: Сетевая компания | E113: Тюменская область
A114: АО "Тюменский электромеханический завод" | B114: 7204003108 | C114: 720301001 | D114: Сетевая компания | E114: Тюменская область
A115: АО "Уренгойская электросетевая компания" | B115: 8904092592 | C115: 890401001 | D115: Сетевая компания | E115: Тюменская область
A116: АО "Элек" | B116: 8602066853 | C116: 860201001 | D116: Сетевая компания | E116: Тюменская область
A117: АО "Энерго-Газ-Ноябрьск" | B117: 8905033649 | C117: 890501001 | D117: Сетевая компания | E117: Тюменская область
A118: АО "ЮРЭСК" | B118: 8601045152 | C118: 862450001 | D118: Сетевая компания | E118: Тюменская область
A119: АО "ЮТЭК-Региональные сети" | B119: 8601033125 | C119: 860101001 | D119: Сетевая компания | E119: Тюменская область
A120: АО "Ямальская железнодорожная компания" | B120: 8904042048 | C120: 890401001 | D120: Сетевая компания | E120: Тюменская область
A121: АО "Оборонэнерго" - филиал "Уральский" | B121: 7704726225 | C121: 667243001 | D121: Сетевая компания | E121: Тюменская область
A122: ЗАО " Тюменский приборостроительный завод" | B122: 7203000841 | C122: 720301001 | D122: Сетевая компания | E122: Тюменская область
A123: ЗАО "Завод Тюменьремдормаш" | B123: 7204005867 | C123: 722401001 | D123: Сетевая компания | E123: Тюменская область
A124: АО "Ханты-Мансийские городские электрические сети" | B124: 8601073745 | C124: 860101001 | D124: Сетевая компания | E124: Тюменская область
A125: МП "Ханты-Мансийские городские электрические сети" МО г. Ханты-Мансийск | B125: 8601065832 | C125: 860101001 | D125: Сетевая компания | E125: Тюменская область
A126: МУП "Надымские городские электрические сети" | B126: 8903030850 | C126: 890301001 | D126: Сетевая компания | E126: Тюменская область
A127: МУП "Сургутские районные электрические сети" МО Сургутский район | B127: 8617017320 | C127: 861701001 | D127: Сетевая компания | E127: Тюменская область
A128: Муниципальное предприятие "Эксплуатационная генерирующая компания" муниципального образования городское поселение Приобье | B128: 8614008285 | C128: 861401001 | D128: Сетевая компания | E128: Тюменская область
A129: ОАО "Варьеганэнергонефть" | B129: 8609003059 | C129: 860901001 | D129: Сетевая компания | E129: Тюменская область
A130: ОАО "ГЭС" г. Мегион | B130: 8605017251 | C130: 860501001 | D130: Сетевая компания | E130: Тюменская область
A131: ОАО "Пойковские электрические сети" | B131: 8619013546 | C131: 861901001 | D131: Сетевая компания | E131: Тюменская область
A132: ОАО "РН-НЯГАНЬНЕФТЕГАЗ" | B132: 8610010727 | C132: 861001001 | D132: Сетевая компания | E132: Тюменская область
A133: ОАО "Радужнинские городские электрические сети" | B133: 8609004670 | C133: 860901001 | D133: Сетевая компания | E133: Тюменская область
A134: ОАО "Сибнефтепровод" | B134: 7201000726 | C134: 720301001 | D134: Сетевая компания | E134: Тюменская область
A135: ОАО "ТНК-Нягань" | B135: 8610010727 | C135: 997150001 | D135: Сетевая компания | E135: Тюменская область
A136: ОАО "Черногорэнерго" | B136: 8620001023 | C136: 860301001 | D136: Сетевая компания | E136: Тюменская область
A137: ОАО "ЮТЭК-Покачи" | B137: 8621005479 | C137: 862101001 | D137: Сетевая компания | E137: Тюменская область
A138: ОАО ТТК "КРОСНО" | B138: 7203001250 | C138: 720301001 | D138: Сетевая компания | E138: Тюменская область
A139: ООО "Тюменская электросетевая компания" | B139: 7204160220 | C139: 720401001 | D139: Сетевая компания | E139: Тюменская область
A140: ООО "Агентство Интеллект-Сервис" | B140: 7202082778 | C140: 720301001 | D140: Сетевая компания | E140: Тюменская область
A141: ООО "Агропромэнергия" | B141: 7224014468 | C141: 722401001 | D141: Сетевая компания | E141: Тюменская область
A142: ООО "Альтера" | B142: 7203252461 | C142: 720301001 | D142: Сетевая компания | E142: Тюменская область
A143: ООО "Аэропорт Советский" | B143: 8615001243 | C143: 861501001 | D143: Сетевая компания | E143: Тюменская область
A144: ООО "Башнефть-Добыча" | B144: 0277106840 | C144: 025250001 | D144: Сетевая компания | E144: Тюменская область
A145: ООО "Башнефть-Добыча" | B145: 0277106840 | C145: 027501001 | D145: Сетевая компания | E145: Тюменская область
A146: ООО "Белозерный газоперерабатывающий комплекс" | B146: 8603138733 | C146: 862450001 | D146: Сетевая компания | E146: Тюменская область
A147: ООО "Газпром добыча Уренгой" | B147: 8904034784 | C147: 997250001 | D147: Сетевая компания | E147: Тюменская область
A148: ООО "Газпром трансгаз Сургут" | B148: 8617002073 | C148: 997250001 | D148: Сетевая компания | E148: Тюменская область
A149: ООО "Газпром трансгаз Сургут" Демьянское ЛПУ МГ | B149: 8617002073 | C149: 722503003 | D149: Сетевая компания | E149: Тюменская область
A150: ООО "Газпром трансгаз Сургут" Ишимское ЛПУ МГ | B150: 8617002073 | C150: 720503001 | D150: Сетевая компания | E150: Тюменская область
A151: ООО "Газпром трансгаз Сургут" Тобольское ЛПУ МГ | B151: 8617002073 | C151: 720603002 | D151: Сетевая компания | E151: Тюменская область
A152: ООО "Газпром трансгаз Сургут" Туртасское ЛПУ МГ | B152: 8617002073 | C152: 722503004 | D152: Сетевая компания | E152: Тюменская область
A153: ООО "Газпром трансгаз Сургут" Ярковское ЛПУ МГ | B153: 8617002073 | C153: 722943001 | D153: Сетевая компания | E153: Тюменская область
A154: ООО "Газпромнефть-Хантос" | B154: 8618006063 | C154: 997150001 | D154: Сетевая компания | E154: Тюменская область
A155: ООО "ДОК-Энерго" | B155: 7204129541 | C155: 720301001 | D155: Сетевая компания | E155: Тюменская область
A156: ООО "ДСК-Энерго" | B156: 7203144385 | C156: 720301001 | D156: Сетевая компания | E156: Тюменская область
A157: ООО "Дака" | B157: 7224003201 | C157: 720301001 | D157: Сетевая компания | E157: Тюменская область
A158: ООО "Дорстрой" | B158: 7204080494 | C158: 720301001 | D158: Сетевая компания | E158: Тюменская область
A159: ООО "Западно-Малобалыкское" | B159: 8619010665 | C159: 997150001 | D159: Сетевая компания | E159: Тюменская область
A160: ООО "ИНТЕГРУС" | B160: 7202190565 | C160: 720201001 | D160: Сетевая компания | E160: Тюменская область
A161: ООО "ЛУКОЙЛ-ЭНЕРГОСЕТИ" | B161: 5260230051 | C161: 525350001 | D161: Сетевая компания | E161: Тюменская область
A162: ООО "Луч-Электро" | B162: 8603097124 | C162: 860301001 | D162: Сетевая компания | E162: Тюменская область
A163: ООО "Мегионэнергонефть" | B163: 8605016890 | C163: 860501001 | D163: Сетевая компания | E163: Тюменская область
A164: ООО "МинЭл" | B164: 8614008550 | C164: 861401001 | D164: Сетевая компания | E164: Тюменская область
A165: ООО "Нижневартовский газоперерабатывающий комплекс" | B165: 8603138726 | C165: 862450001 | D165: Сетевая компания | E165: Тюменская область
A166: ООО "Нижневартовскэнергонефть" | B166: 8603104220 | C166: 862450001 | D166: Сетевая компания | E166: Тюменская область
A167: ООО "Газпромнефть Энергосистемы" | B167: 8905032490 | C167: 891450001 | D167: Сетевая компания | E167: Тюменская область
A168: ООО "РН - Юганскнефтегаз" | B168: 8604035473 | C168: 997150001 | D168: Сетевая компания | E168: Тюменская область
A169: ООО "РН - Юганскнефтегаз" | B169: 8604035473 | C169: 997250001 | D169: Сетевая компания | E169: Тюменская область
A170: ООО "Региональная энергетическая компания" | B170: 7203412147 | C170: 720301001 | D170: Сетевая компания | E170: Тюменская область
A171: ООО "Ремэнергостройсервис" | B171: 7224023014 | C171: 722401001 | D171: Сетевая компания | E171: Тюменская область
A172: ООО "Русская тепловая компания" | B172: 8602062560 | C172: 860201001 | D172: Сетевая компания | E172: Тюменская область
A173: ООО "СИБУР Тобольск" | B173: 7206025040 | C173: 720601001 | D173: Сетевая компания | E173: Тюменская область
A174: ООО "СеверСетьРазвитие" | B174: 8901021265 | C174: 667101001 | D174: Сетевая компания | E174: Тюменская область
A175: ООО "Северремприбор" | B175: 8602248187 | C175: 860201001 | D175: Сетевая компания | E175: Тюменская область
A176: ООО "Сетевая компания "Вектор" | B176: 7204143715 | C176: 720301001 | D176: Сетевая компания | E176: Тюменская область
A177: ООО "Сибирь-Электро" | B177: 7224035725 | C177: 722401001 | D177: Сетевая компания | E177: Тюменская область
A178: ООО "Сибтрансэлектро" | B178: 8604010454 | C178: 860401001 | D178: Сетевая компания | E178: Тюменская область
A179: ООО "Сибэнергокомплектмонтаж" | B179: 8602253660 | C179: 860201001 | D179: Сетевая компания | E179: Тюменская область
A180: ООО "Статус" | B180: 7202153919 | C180: 720401001 | D180: Сетевая компания | E180: Тюменская область
A181: ООО "Строительно-промышленный комбинат" | B181: 8603214825 | C181: 860301001 | D181: Сетевая компания | E181: Тюменская область
A182: ООО "Сургутские городские электрические сети" | B182: 8602015464 | C182: 860201001 | D182: Сетевая компания | E182: Тюменская область
A183: ООО "ТРАНССЕТЬ" | B183: 7203395220 | C183: 720301001 | D183: Сетевая компания | E183: Тюменская область
A184: ООО "Тарманское-Центральное" | B184: 7203141497 | C184: 720301001 | D184: Сетевая компания | E184: Тюменская область
A185: ООО "Тобольскпромэнергосеть" | B185: 7206032440 | C185: 720601001 | D185: Сетевая компания | E185: Тюменская область
A186: ООО "Транзит-Электро-Тюмень" | B186: 7203249540 | C186: 720301001 | D186: Сетевая компания | E186: Тюменская область
A187: ООО "ТюменьСеть" | B187: 7203508113 | C187: 720301001 | D187: Сетевая компания | E187: Тюменская область
A188: ООО "Управляющая компания - Тюменские моторостроители" | B188: 7203179282 | C188: 720301001 | D188: Сетевая компания | E188: Тюменская область
A189: ООО "ЭлектроСпецСтрой" | B189: 7224038532 | C189: 720301001 | D189: Сетевая компания | E189: Тюменская область
A190: ООО "ЭЛЕКОНТ" | B190: 7224046773 | C190: 722401001 | D190: Сетевая компания | E190: Тюменская область
A191: ООО "Элтранс" | B191: 7224042747 | C191: 720301001 | D191: Сетевая компания | E191: Тюменская область
A192: ООО "Энергия-2006" | B192: 7203180111 | C192: 720301001 | D192: Сетевая компания | E192: Тюменская область
A193: ООО "Энерго Тюмень" | B193: 7204161070 | C193: 720401001 | D193: Сетевая компания | E193: Тюменская область
A194: ООО "Энерго-Лидер" | B194: 7204162073 | C194: 720401001 | D194: Сетевая компания | E194: Тюменская область
A195: ООО "Энергонефть Томск" | B195: 7022010799 | C195: 702201001 | D195: Сетевая компания | E195: Тюменская область
A196: ООО «Газпром переработка» в зоне деятельности филиала Завод по стабилизации конденсата имени В.С. Черномырдина | B196: 1102054991 | C196: 860201001 | D196: Сетевая компания | E196: Тюменская область
A197: ООО «Газпром энерго» в зоне деятельности Сургутского филиала Общества с ограниченной ответственностью «Газпром энерго» | B197: 7736186950 | C197: 860202001 | D197: Сетевая компания | E197: Тюменская область
A198: ООО «ЭЛЕК» | B198: 8602281868 | C198: 860201001 | D198: Сетевая компания | E198: Тюменская область
A199: ООО СК "Восток" | B199: 7203304688 | C199: 720301001 | D199: Сетевая компания | E199: Тюменская область
A200: ПАО "Птицефабрика "Боровская" | B200: 7224008030 | C200: 722401001 | D200: Сетевая компания | E200: Тюменская область
... 581 more rows

Sheet REESTR (hidden)
A1: ОРГАНИЗАЦИЯ | B1: ИНН | C1: КПП
A2: ООО "Агентство Интеллект-Сервис" | B2: 7202082778 | C2: 720301001
A3: ООО "Агропромэнергия" | B3: 7224014468 | C3: 722401001

Sheet tech (hidden)
A2: add_net_company_range
F3: =SUM(G3:J3) -> 0
A5: add_gen_company_range
F6: =SUM(G6:J6) -> 0
A8: add_sbwt_company_range
F9: =SUM(G9:J9) -> 0
A11: add_other_company_range
F12: =SUM(G12:J12) -> 0
A15: add_net_company_locked_range
F16: =SUM(G16:J16) -> 0
A18: add_gen_company_locked_range
F19: =SUM(G19:J19) -> 0
A21: add_sbwt_company_locked_range
F22: =SUM(G22:J22) -> 0
A24: add_other_company_locked_range
F25: =SUM(G25:J25) -> 0
